[Event "4th Chessfestival Gredine 2018"]
[Site "Ortisei"]
[Date "2018.06.24"]
[Round "9.10"]
[White "Molina, Fabrizio"]
[Black "Borgo, Giulio"]
[Result "0-1"]
[ECO "D02"]
[WhiteElo "2212"]
[BlackElo "2397"]
[Annotator "NA"]
[PlyCount "86"]
[EventDate "2018.06.16"]
[EventType "swiss"]
[EventCountry "ITA"]
[SourceTitle "playchess.com"]
[Source "ChessBase"]
[SourceQuality "1"]
[TimeControl "40/5400+30:1800+30"]

1. d4 {[%emt 0:00:30]} d5 {[%emt 0:01:00]} 2. Bf4 {[%emt 0:00:30]} Nf6 {[%emt 0:00:30]} 3. e3 {[%emt 0:00:30]} e6 {[%emt 0:01:30]} 4. Nd2 {[%emt 0:03:30]} Bd6 {[%emt 0:03:30]} 5. Bg3 {[%emt 0:00:30]} O-O {[%emt 0:00:30]} 6. Ngf3 {[%emt 0:02:30]} c5 {[%emt 0:01:30]} 7. c3 {[%emt 0:00:00]} Qc7 {[%emt 0:00:00]} 8. Ne5 {[%emt 0:05:00]} c4 {[%emt 0:02:00]} 9. f4 {[%emt 0:03:30]} Nbd7 {[%emt 0:00:30]} 10. Bh4 {[%emt 0:00:30]} Ne8 {[%emt 0:06:30]} 11. b3 {[%emt 0:28:30]} b5 $15 {[%emt 0:05:30]} ({Much worse is} 11... Bxe5 $6 12. fxe5 f6 13. exf6 $14) 12. Be2 {[%emt 0:11:30]} Nb6 {[%emt 0:01:30]} 13. O-O {[%emt 0:02:30]} f6 {[%emt 0:10:30]} 14. Ng4 {[%emt 0:03:30]} Bd7 {[%emt 0:13:30]} 15. Qc2 {[%emt 0:04:30]} a5 {[%emt 0:02:30]} 16. bxc4 {[%emt 0:01:30]} bxc4 {[%emt 0:00:30]} 17. Bg3 {[%emt 0:04:30]} Ba4 {[%emt 0:07:30]} 18. Qc1 {[%emt 0:05:30]} Qe7 {[%emt 0:05:30]} 19. Rb1 {[%emt 0:06:20]} Rb8 {[%emt 0:00:30]} 20. Qe1 {[%emt 0:00:20]} Bc7 {[%emt 0:08:30]} 21. e4 {[%emt 0:02:54]} f5 {[%emt 0:14:46]} 22. exf5 {[%emt 0:01:20]} exf5 {[%emt 0:00:11]} 23. Ne5 {[%emt 0:04:37]} Qa3 {[%emt 0:02:09]} 24. Qc1 {[%emt 0:02:16]} Qxc1 {[%emt 0:06:17]} 25. Rfxc1 {[%emt 0:00:30]} Nd6 {[%emt 0:00:58]} 26. Bh4 {[%emt 0:00:31]} Rfe8 {[%emt 0:00:01]} 27. Bh5 {[%emt 0:00:35]} g6 {[%emt 0:00:14]} 28. Bd1 {[%emt 0:00:33]} Bxd1 {[%emt 0:00:55]} 29. Rxd1 {[%emt 0:00:33]} Na4 {[%emt 0:00:30]} 30. Rxb8 {[%emt 0:02:24]} Rxb8 {[%emt 0:00:08]} 31. Nd7 {[%emt 0:01:33]} Nxc3 {[%emt 0:02:15]} 32. Re1 {[%emt 0:00:03]} Rb2 {[%emt 0:00:06]} 33. Re7 {[%emt 0:01:16]} Nce4 {[%emt 0:01:21]} 34. Nxe4 {[%emt 0:01:16]} Rb1+ {[%emt 0:00:40]} 35. Kf2 {[%emt 0:00:02]} Nxe4+ {[%emt 0:00:10]} 36. Ke3 {[%emt 0:00:11]} Bd6 {[%emt 0:02:16]} 37. Re8+ {[%emt 0:00:18]} Kf7 {[%emt 0:00:25]} 38. Rc8 {[%emt 0:01:51]} Ke6 {[%emt 0:01:38]} 39. Ne5 {[%emt 0:00:32]} Rb8 {[%emt 0:00:54]} 40. Rc6 {[%emt 0:00:29]} a4 {[%emt 0:01:06]} 41. Ra6 {[%emt 0:03:06]} a3 {[%emt 0:00:30]} 42. Nc6 {[%emt 0:07:30]} Rc8 {[%emt 0:05:30]} 43. Be1 {[%emt 0:03:08]} c3 {[%emt 0:02:30]} 0-1

[Event "4th Chessfestival Gredine 2018"]
[Site "Ortisei"]
[Date "2018.06.24"]
[Round "9.12"]
[White "Herzog, Adolf"]
[Black "Movileanu, Daniela"]
[Result "1-0"]
[ECO "D02"]
[WhiteElo "2344"]
[BlackElo "2199"]
[Annotator "ChessBase"]
[PlyCount "59"]
[EventDate "2018.06.16"]
[EventType "swiss"]
[EventCountry "ITA"]
[SourceTitle "playchess.com"]
[Source "ChessBase"]
[SourceQuality "1"]
[TimeControl "40/5400+30:1800+30"]

1. d4 {[%emt 0:00:30]} Nf6 {[%emt 0:01:00]} 2. Nf3 {[%emt 0:00:00]} g6 {[%emt 0:00:00]} 3. Bf4 {[%emt 0:00:00]} Bg7 {[%emt 0:00:00]} 4. c3 {[%emt 0:00:30]} O-O {[%emt 0:00:30]} 5. Nbd2 {[%emt 0:00:30]} d5 {[%emt 0:00:30]} 6. e3 {[%emt 0:00:30]} c5 {[%emt 0:00:30]} 7. Bd3 {[%emt 0:01:30]} Nc6 {[%emt 0:00:30]} 8. h3 {[%emt 0:03:30]} b6 {[%emt 0:00:30]} 9. Ne5 {[%emt 0:00:30]} Bb7 {[%emt 0:00:30]} 10. Nxc6 {[%emt 0:12:30]} Bxc6 {[%emt 0:00:30]} 11. Be5 {[%emt 0:00:00]} Re8 {[%emt 0:09:30]} 12. f4 {[%emt 0:00:00]} Ne4 {[%emt 0:10:30]} 13. Bxe4 {[%emt 0:08:30]} dxe4 {[%emt 0:00:30]} 14. Bxg7 {[%emt 0:00:30]} Kxg7 {[%emt 0:00:30]} 15. O-O {[%emt 0:05:30]} Rc8 {[%emt 0:04:30]} 16. f5 {[%emt 0:02:30]} e5 {[%emt 0:10:30]} 17. f6+ {[%emt 0:04:30]} Kh8 {[%emt 0:00:30]} 18. dxc5 {[%emt 0:03:30]} bxc5 {[%emt 0:02:30]} 19. Nc4 {[%emt 0:02:30]} Re6 {[%emt 0:14:30]} 20. Qg4 {[%emt 0:05:30]} Qf8 {[%emt 0:10:30]} 21. Rad1 {[%emt 0:04:30]} Rb8 {[%emt 0:06:30]} 22. b3 {[%emt 0:01:30]} h6 {[%emt 0:00:30]} 23. Qxe6 {[%emt 0:10:30]} fxe6 {[%emt 0:00:30]} 24. Nxe5 {[%emt 0:00:30]} Qc8 {[%emt 0:14:00]} 25. f7 {[%emt 0:00:30]} Qc7 {[%emt 0:01:08]} 26. f8=Q+ {[%emt 0:00:30]} Rxf8 {[%emt 0:00:03]} 27. Rxf8+ {[%emt 0:00:30]} Kg7 {[%emt 0:00:05]} 28. Rf7+ {[%emt 0:00:00]} Qxf7 {[%emt 0:00:28]} 29. Nxf7 {[%emt 0:00:00]} Kxf7 {[%emt 0:00:00]} 30. Rd6 {[%emt 0:00:30]} 1-0

[Event "4th Chessfestival Gredine 2018"]
[Site "Ortisei"]
[Date "2018.06.24"]
[Round "9.13"]
[White "Wiesinger, Robert"]
[Black "Volkov, Dmitriy"]
[Result "1/2-1/2"]
[ECO "B51"]
[WhiteElo "2199"]
[BlackElo "2334"]
[Annotator "ChessBase"]
[PlyCount "66"]
[EventDate "2018.06.16"]
[EventType "swiss"]
[EventCountry "ITA"]
[SourceTitle "playchess.com"]
[Source "ChessBase"]
[SourceQuality "1"]
[TimeControl "40/5400+30:1800+30"]

1. e4 {[%emt 0:00:30]} c5 {[%emt 0:01:00]} 2. Nf3 {[%emt 0:00:00]} Nc6 {[%emt 0:00:00]} 3. Bb5 {[%emt 0:00:00]} d6 {[%emt 0:00:00]} 4. Bxc6+ {[%emt 0:00:30]} bxc6 {[%emt 0:00:00]} 5. O-O {[%emt 0:00:00]} e5 {[%emt 0:00:00]} 6. c3 {[%emt 0:00:00]} f5 {[%emt 0:00:00]} 7. exf5 {[%emt 0:08:30]} Be7 {[%emt 0:00:00]} 8. d4 {[%emt 0:09:30]} e4 {[%emt 0:00:30]} 9. Nfd2 {[%emt 0:09:30]} Nf6 {[%emt 0:00:30]} 10. f3 {[%emt 0:05:30]} Bxf5 {[%emt 0:09:30]} 11. fxe4 {[%emt 0:07:30]} Bg4 {[%emt 0:00:30]} 12. Qa4 {[%emt 0:04:30]} O-O {[%emt 0:01:30]} 13. e5 {[%emt 0:02:30]} Nd5 {[%emt 0:07:30]} 14. dxc5 {[%emt 0:10:30]} dxe5 {[%emt 0:02:30]} 15. Qxg4 {[%emt 0:02:30]} Bxc5+ {[%emt 0:00:30]} 16. Kh1 {[%emt 0:00:30]} Ne3 {[%emt 0:01:30]} 17. Rxf8+ {[%emt 0:06:30]} Qxf8 {[%emt 0:01:30]} 18. Qe2 {[%emt 0:03:30]} Nc2 {[%emt 0:11:30]} 19. Nb3 {[%emt 0:02:30]} Nxa1 {[%emt 0:05:30]} 20. Nxa1 {[%emt 0:00:30]} Qf7 {[%emt 0:02:30]} 21. Nb3 {[%emt 0:01:30]} Rf8 {[%emt 0:01:30]} 22. N1d2 {[%emt 0:00:30]} Bb6 {[%emt 0:01:30]} 23. Nf3 {[%emt 0:01:30]} Qf5 {[%emt 0:06:30]} 24. c4 {[%emt 0:08:06]} e4 {[%emt 0:08:30]} 25. Ng1 {[%emt 0:00:40]} Qf1 {[%emt 0:04:30]} 26. Qxf1 {[%emt 0:00:41]} Rxf1 {[%emt 0:00:00]} 27. c5 {[%emt 0:00:08]} Bxc5 {[%emt 0:00:00]} 28. Nxc5 {[%emt 0:00:12]} Rxc1 {[%emt 0:00:00]} 29. Nxe4 {[%emt 0:00:28]} Rc2 {[%emt 0:00:00]} 30. Nc3 {[%emt 0:00:41]} Rxb2 {[%emt 0:00:30]} 31. Nge2 {[%emt 0:00:19]} Kf7 {[%emt 0:00:30]} 32. Kg1 {[%emt 0:00:30]} Ke6 {[%emt 0:00:30]} 33. Kf2 {[%emt 0:00:43]} Ke5 {[%emt 0:01:30]} 1/2-1/2

[Event "4th Chessfestival Gredine 2018"]
[Site "Ortisei"]
[Date "2018.06.24"]
[Round "9.15"]
[White "Wecker, Martin"]
[Black "Dittmar, Peter"]
[Result "1-0"]
[ECO "D21"]
[WhiteElo "2143"]
[BlackElo "2252"]
[Annotator "ChessBase"]
[PlyCount "69"]
[EventDate "2018.06.16"]
[EventType "swiss"]
[EventCountry "ITA"]
[SourceTitle "playchess.com"]
[Source "ChessBase"]
[SourceQuality "1"]
[TimeControl "40/5400+30:1800+30"]

1. Nf3 {[%emt 0:00:30]} d5 {[%emt 0:01:00]} 2. d4 {[%emt 0:00:00]} c5 {[%emt 0:00:00]} 3. c4 {[%emt 0:01:00]} dxc4 {[%emt 0:00:00]} 4. e3 {[%emt 0:00:30]} cxd4 {[%emt 0:03:30]} 5. exd4 {[%emt 0:00:30]} Be6 {[%emt 0:00:30]} 6. Nc3 {[%emt 0:06:30]} Nf6 {[%emt 0:00:30]} 7. Ne5 {[%emt 0:06:30]} Nbd7 {[%emt 0:03:30]} 8. Nxc4 {[%emt 0:16:30]} Bxc4 {[%emt 0:03:30]} 9. Bxc4 {[%emt 0:00:30]} e6 {[%emt 0:00:00]} 10. O-O {[%emt 0:04:30]} Bd6 {[%emt 0:01:00]} 11. Qe2 {[%emt 0:18:30]} O-O {[%emt 0:04:30]} 12. Bg5 {[%emt 0:00:30]} h6 {[%emt 0:01:30]} 13. Bh4 {[%emt 0:00:30]} Rc8 {[%emt 0:00:30]} 14. Bb3 {[%emt 0:01:30]} Be7 {[%emt 0:01:30]} 15. Bg3 {[%emt 0:04:30]} Nb6 {[%emt 0:00:30]} 16. Rad1 {[%emt 0:01:30]} Nbd5 {[%emt 0:00:30]} 17. Ne4 {[%emt 0:02:30]} Nxe4 {[%emt 0:01:30]} 18. Qxe4 {[%emt 0:00:00]} Qd7 {[%emt 0:01:30]} 19. Be5 {[%emt 0:06:00]} Nf6 {[%emt 0:14:30]} 20. Qd3 {[%emt 0:01:30]} Rfd8 {[%emt 0:02:30]} 21. Bc2 {[%emt 0:01:30]} g6 {[%emt 0:00:00]} 22. Bb3 {[%emt 0:00:30]} Nd5 {[%emt 0:05:00]} 23. Qh3 {[%emt 0:03:30]} Bf8 {[%emt 0:03:30]} 24. Rfe1 {[%emt 0:01:30]} Bg7 {[%emt 0:09:30]} 25. Qf3 {[%emt 0:01:31]} Qc6 {[%emt 0:01:30]} 26. h4 {[%emt 0:01:15]} Ne7 {[%emt 0:02:30]} 27. Qf4 {[%emt 0:02:08]} Nd5 {[%emt 0:01:30]} 28. Qe4 {[%emt 0:00:41]} a5 {[%emt 0:04:30]} 29. h5 {[%emt 0:04:02]} g5 {[%emt 0:00:30]} 30. Rc1 {[%emt 0:03:53]} Qd7 {[%emt 0:08:30]} 31. Bc2 {[%emt 0:02:47]} f5 {[%emt 0:06:30]} 32. Qe2 {[%emt 0:00:10]} Bxe5 {[%emt 0:03:22]} 33. Qxe5 {[%emt 0:00:08]} Kf7 {[%emt 0:01:13]} 34. Ba4 {[%emt 0:01:58]} Qd6 {[%emt 0:00:07]} 35. Qxd6 {[%emt 0:00:08]} 1-0

[Event "4th Chessfestival Gredine 2018"]
[Site "Ortisei"]
[Date "2018.06.24"]
[Round "9.16"]
[White "Lumachi, Gabriele"]
[Black "Curien, Nicolas"]
[Result "1/2-1/2"]
[ECO "C13"]
[WhiteElo "1989"]
[BlackElo "2204"]
[Annotator "ChessBase"]
[PlyCount "67"]
[EventDate "2018.06.16"]
[EventType "swiss"]
[EventCountry "ITA"]
[SourceTitle "playchess.com"]
[Source "ChessBase"]
[SourceQuality "1"]
[TimeControl "40/5400+30:1800+30"]

1. e4 {[%emt 0:00:30]} e6 {[%emt 0:01:00]} 2. d4 {[%emt 0:00:00]} d5 {[%emt 0:00:00]} 3. Nc3 {[%emt 0:00:00]} Nf6 {[%emt 0:00:00]} 4. Bg5 {[%emt 0:00:00]} dxe4 {[%emt 0:00:30]} 5. Nxe4 {[%emt 0:00:00]} Be7 {[%emt 0:00:00]} 6. Bxf6 {[%emt 0:00:00]} gxf6 {[%emt 0:00:00]} 7. Nf3 {[%emt 0:00:00]} f5 {[%emt 0:00:30]} 8. Nc3 {[%emt 0:00:00]} Qd6 {[%emt 0:00:30]} 9. Qe2 {[%emt 0:02:00]} a6 {[%emt 0:00:30]} 10. g3 {[%emt 0:00:00]} b5 {[%emt 0:01:30]} 11. Bg2 {[%emt 0:00:00]} Bb7 {[%emt 0:00:30]} 12. O-O {[%emt 0:00:30]} Nd7 {[%emt 0:02:30]} 13. Rad1 {[%emt 0:01:30]} Nb6 {[%emt 0:18:30]} 14. Ne5 {[%emt 0:23:30]} Bxg2 {[%emt 0:03:30]} 15. Kxg2 {[%emt 0:00:30]} Bf6 {[%emt 0:04:30]} 16. f4 {[%emt 0:08:30]} b4 {[%emt 0:12:30]} 17. Nb1 {[%emt 0:02:30]} Bxe5 {[%emt 0:05:30]} 18. dxe5 {[%emt 0:02:30]} Qc6+ {[%emt 0:00:00]} 19. Kg1 {[%emt 0:01:30]} Nd5 {[%emt 0:01:00]} 20. Rd3 {[%emt 0:03:30]} h5 {[%emt 0:02:30]} 21. h4 {[%emt 0:03:30]} Rg8 {[%emt 0:04:30]} 22. c3 {[%emt 0:02:30]} Rb8 {[%emt 0:14:30]} 23. Kh2 {[%emt 0:07:30]} Ke7 {[%emt 0:00:30]} 24. Rff3 {[%emt 0:04:30]} Qb5 {[%emt 0:11:29]} 25. Rd2 {[%emt 0:02:30]} Qxe2+ {[%emt 0:03:00]} 26. Rxe2 {[%emt 0:00:00]} b3 {[%emt 0:01:42]} 27. axb3 {[%emt 0:01:00]} Rxb3 {[%emt 0:00:13]} 28. Na3 {[%emt 0:00:30]} Nb6 {[%emt 0:01:58]} 29. Rd3 {[%emt 0:03:30]} Na4 {[%emt 0:03:46]} 30. Nc4 {[%emt 0:01:30]} Nc5 {[%emt 0:00:11]} 31. Rd4 {[%emt 0:02:30]} Ne4 {[%emt 0:00:22]} 32. Rg2 {[%emt 0:03:30]} Rb5 {[%emt 0:02:58]} 33. Na3 {[%emt 0:03:30]} Rb6 {[%emt 0:00:56]} 34. Nc4 {[%emt 0:01:30]} 1/2-1/2

[Event "4th Chessfestival Gredine 2018"]
[Site "Ortisei"]
[Date "2018.06.24"]
[Round "9.18"]
[White "Jaracz, Barbara"]
[Black "Seyb, Dieter"]
[Result "1-0"]
[ECO "C03"]
[WhiteElo "2246"]
[BlackElo "2179"]
[Annotator "NA"]
[PlyCount "85"]
[EventDate "2018.06.16"]
[EventType "swiss"]
[EventCountry "ITA"]
[SourceTitle "playchess.com"]
[Source "ChessBase"]
[SourceQuality "1"]
[TimeControl "40/5400+30:1800+30"]

1. e4 {[%emt 0:00:30]} e6 {[%emt 0:01:00]} 2. d4 {[%emt 0:00:00]} d5 {[%emt 0:00:00]} 3. Nd2 {[%emt 0:00:00]} h6 {[%emt 0:00:00]} 4. Bd3 {[%emt 0:07:30]} c5 {[%emt 0:00:30] LiveBook: 56 Games} 5. c3 {[%emt 0:02:30]} Nc6 {[%emt 0:00:00]} 6. exd5 {[%emt 0:11:30]} Qxd5 {[%emt 0:01:00]} 7. Be4 {[%emt 0:06:30]} Qd7 {[%emt 0:04:30]} 8. dxc5 {[%emt 0:01:30]} Nf6 {[%emt 0:04:30]} 9. Bc2 {[%emt 0:02:30]} Bxc5 {[%emt 0:01:30]} 10. Ngf3 {[%emt 0:00:30]} b6 {[%emt 0:07:30]} 11. O-O {[%emt 0:02:30]} Bb7 {[%emt 0:00:30]} 12. Qe2 {[%emt 0:06:30]} Qc7 {[%emt 0:07:30]} 13. b4 $15 {[%emt 0:08:30]} Be7 {[%emt 0:01:30]} 14. a3 {[%emt 0:01:30]} O-O {[%emt 0:04:30]} 15. c4 {[%emt 0:08:30]} Rfd8 {[%emt 0:08:30]} 16. Bb2 {[%emt 0:01:30]} Qf4 {[%emt 0:04:30]} 17. Rac1 {[%emt 0:03:30]} Qg4 {[%emt 0:08:30]} 18. h3 {[%emt 0:02:30]} Qh5 {[%emt 0:00:30]} 19. Rfe1 {[%emt 0:05:30]} Bf8 {[%emt 0:03:30]} 20. Bxf6 {[%emt 0:11:26]} gxf6 {[%emt 0:03:30]} 21. Ne4 {[%emt 0:00:15]} Qg6 {[%emt 0:06:30]} 22. Red1 {[%emt 0:02:05]} f5 {[%emt 0:01:30]} 23. Ng3 {[%emt 0:00:49]} Bg7 {[%emt 0:01:30]} 24. Qe3 {[%emt 0:02:18]} Bb2 {[%emt 0:02:30]} 25. Rb1 {[%emt 0:00:14]} Bf6 {[%emt 0:00:30]} 26. Rxd8+ {[%emt 0:01:23]} Rxd8 {[%emt 0:00:00]} 27. Rd1 {[%emt 0:00:03]} Rxd1+ {[%emt 0:07:00]} 28. Bxd1 {[%emt 0:00:04]} h5 {[%emt 0:08:23]} 29. h4 {[%emt 0:01:24]} Qg4 {[%emt 0:05:07]} 30. Qd3 {[%emt 0:03:02]} Nd4 {[%emt 0:04:42]} 31. Nxd4 {[%emt 0:05:40]} Qxd4 {[%emt 0:01:46]} 32. Qxd4 {[%emt 0:00:34]} Bxd4 {[%emt 0:00:30]} 33. Bb3 {[%emt 0:00:49]} a5 {[%emt 0:00:30]} 34. Kf1 {[%emt 0:01:41]} Be4 {[%emt 0:00:52]} 35. Nxh5 {[%emt 0:00:25]} Bb1 {[%emt 0:00:30]} 36. Ke2 {[%emt 0:00:08]} axb4 {[%emt 0:00:39]} 37. axb4 {[%emt 0:00:29]} e5 {[%emt 0:00:05]} 38. Ng3 {[%emt 0:00:52]} e4 {[%emt 0:00:30]} 39. Nxf5 {[%emt 0:00:30]} Kf8 {[%emt 0:00:30]} 40. Ba2 {[%emt 0:00:30]} Bd3+ {[%emt 0:01:26]} 41. Kd2 {[%emt 0:05:19]} Bxf2 {[%emt 0:00:30]} 42. Bb3 {[%emt 0:00:30]} Bf1 {[%emt 0:01:30]} 43. g4 {[%emt 0:16:17]} 1-0

[Event "4th Chessfestival Gredine 2018"]
[Site "Ortisei"]
[Date "2018.06.24"]
[Round "9.19"]
[White "Zenari, Marco"]
[Black "Landi, Alberto"]
[Result "0-1"]
[ECO "C14"]
[WhiteElo "2177"]
[BlackElo "2198"]
[Annotator "NA"]
[PlyCount "108"]
[EventDate "2018.06.16"]
[EventType "swiss"]
[EventCountry "ITA"]
[SourceTitle "playchess.com"]
[Source "ChessBase"]
[SourceQuality "1"]
[TimeControl "40/5400+30:1800+30"]

1. e4 {[%emt 0:00:30]} e6 {[%emt 0:01:00]} 2. d4 {[%emt 0:00:00]} d5 {[%emt 0:00:00]} 3. Nc3 {[%emt 0:00:00]} Nf6 {[%emt 0:00:00]} 4. Bg5 {[%emt 0:00:00]} Be7 {[%emt 0:00:00]} 5. e5 {[%emt 0:00:00]} Nfd7 {[%emt 0:00:00]} 6. h4 {[%emt 0:00:30]} h6 {[%emt 0:00:00]} 7. Bxe7 {[%emt 0:01:30]} Qxe7 {[%emt 0:00:00]} 8. Qg4 {[%emt 0:01:30]} O-O {[%emt 0:00:00]} 9. Nf3 {[%emt 0:07:30]} c5 {[%emt 0:00:00]} 10. dxc5 {[%emt 0:25:30]} Nc6 {[%emt 0:02:30]} 11. Qg3 {[%emt 0:01:30]} Nxc5 {[%emt 0:02:30]} 12. O-O-O {[%emt 0:01:30]} a6 {[%emt 0:05:30]} 13. Bd3 {[%emt 0:06:30]} f6 {[%emt 0:17:30]} 14. Rhe1 {[%emt 0:08:30]} Bd7 {[%emt 0:14:30]} 15. Kb1 {[%emt 0:06:30]} b5 {[%emt 0:07:30]} 16. exf6 {[%emt 0:02:30]} Qxf6 {[%emt 0:00:30]} 17. Qd6 {[%emt 0:00:30]} Qe7 {[%emt 0:13:30]} 18. Qxe7 {[%emt 0:00:30]} Nxe7 {[%emt 0:00:00]} 19. Ne5 {[%emt 0:00:30]} Be8 {[%emt 0:04:00]} 20. f3 {[%emt 0:02:30]} Nd7 {[%emt 0:08:30]} 21. Rd2 {[%emt 0:10:30]} Nxe5 {[%emt 0:04:23]} 22. Rxe5 {[%emt 0:00:30]} Rf6 {[%emt 0:00:18]} 23. Bf1 {[%emt 0:04:58]} Nc6 {[%emt 0:00:34]} 24. Re1 {[%emt 0:00:08]} Bf7 {[%emt 0:01:10]} 25. Ne2 {[%emt 0:05:58]} e5 {[%emt 0:00:46]} 26. Nc3 {[%emt 0:01:15]} Rd8 {[%emt 0:01:32]} 27. Red1 {[%emt 0:00:17]} Nd4 {[%emt 0:00:51]} 28. a4 {[%emt 0:06:44]} b4 {[%emt 0:01:23]} 29. Ne2 {[%emt 0:00:26]} Nf5 {[%emt 0:00:48]} 30. h5 {[%emt 0:02:24]} Ne3 {[%emt 0:01:57]} 31. Re1 {[%emt 0:00:06]} Nxf1 {[%emt 0:01:40]} 32. Rxf1 {[%emt 0:00:04]} Bxh5 {[%emt 0:00:24]} 33. Ng3 {[%emt 0:00:24]} Bg6 {[%emt 0:00:13]} 34. Re1 {[%emt 0:00:14]} b3 {[%emt 0:03:06]} 35. Rxe5 {[%emt 0:01:28]} bxc2+ {[%emt 0:00:46]} 36. Kc1 {[%emt 0:00:05]} d4 {[%emt 0:04:24]} 37. Ne4 {[%emt 0:01:50]} Bxe4 {[%emt 0:00:03]} 38. Rxe4 {[%emt 0:00:00]} d3 {[%emt 0:00:05]} 39. Re3 {[%emt 0:00:53]} Rfd6 {[%emt 0:00:03]} 40. b4 {[%emt 0:00:09]} Rd4 {[%emt 0:07:34]} 41. g3 {[%emt 0:20:37]} Kf7 {[%emt 0:08:30]} 42. b5 {[%emt 0:06:44]} axb5 {[%emt 0:09:09]} 43. axb5 {[%emt 0:00:30]} h5 {[%emt 0:01:28]} 44. b6 {[%emt 0:00:29]} R8d7 {[%emt 0:00:23]} 45. b7 {[%emt 0:01:27]} Rxb7 {[%emt 0:00:03]} 46. Rexd3 {[%emt 0:00:46]} Rxd3 {[%emt 0:00:01]} 47. Rxd3 {[%emt 0:00:12]} Rc7 {[%emt 0:00:03]} 48. Ra3 {[%emt 0:06:14]} Rc5 {[%emt 0:00:16]} 49. Ra2 {[%emt 0:00:36]} Rc3 {[%emt 0:02:41]} 50. Rxc2 {[%emt 0:00:06]} Rxf3 {[%emt 0:00:05]} 51. Rg2 {[%emt 0:00:10]} Kg6 {[%emt 0:00:12]} 52. g4 {[%emt 0:01:30]} h4 {[%emt 0:00:01]} 53. Kd1 {[%emt 0:00:00]} Kg5 {[%emt 0:00:14]} 54. Ke2 {[%emt 0:00:00]} Rf4 0-1

[Event "4th Chessfestival Gredine 2018"]
[Site "Ortisei"]
[Date "2018.06.24"]
[Round "9.20"]
[White "Johnsen, Gunnar"]
[Black "Hoffmann, Sebastian"]
[Result "1/2-1/2"]
[ECO "D13"]
[WhiteElo "2188"]
[BlackElo "2067"]
[Annotator "NA"]
[PlyCount "83"]
[EventDate "2018.06.16"]
[EventType "swiss"]
[EventCountry "ITA"]
[SourceTitle "playchess.com"]
[Source "ChessBase"]
[SourceQuality "1"]
[TimeControl "40/5400+30:1800+30"]

1. Nf3 {[%emt 0:00:30]} Nf6 {[%emt 0:01:00]} 2. c4 {[%emt 0:00:30]} c6 {[%emt 0:00:00]} 3. d4 {[%emt 0:00:00]} d5 {[%emt 0:00:00]} 4. cxd5 {[%emt 0:00:00]} cxd5 {[%emt 0:00:30]} 5. Nc3 {[%emt 0:00:30]} Nc6 {[%emt 0:00:00]} 6. Bf4 {[%emt 0:00:00]} Ne4 {[%emt 0:00:00]} 7. e3 {[%emt 0:00:00]} Nxc3 {[%emt 0:00:30]} 8. bxc3 {[%emt 0:00:30]} e6 {[%emt 0:00:30]} 9. Bd3 {[%emt 0:08:30]} Bd6 {[%emt 0:00:00]} 10. Bxd6 {[%emt 0:00:30]} Qxd6 {[%emt 0:00:00]} 11. O-O {[%emt 0:00:30]} O-O {[%emt 0:00:30]} 12. c4 {[%emt 0:04:30]} dxc4 {[%emt 0:00:00]} 13. Bxc4 {[%emt 0:00:00]} b6 {[%emt 0:00:00]} 14. Qe2 {[%emt 0:09:00]} Bb7 {[%emt 0:00:30]} 15. Ba6 {[%emt 0:02:30]} Qd7 {[%emt 0:05:30]} 16. Rfc1 {[%emt 0:05:30]} Rac8 {[%emt 0:03:30]} 17. a4 $11 {[%emt 0:07:30]} Bxa6 {[%emt 0:12:30]} 18. Qxa6 {[%emt 0:00:30]} Rfd8 {[%emt 0:20:30]} 19. h3 {[%emt 0:04:30]} h6 {[%emt 0:04:30]} 20. Qb5 {[%emt 0:07:30]} Rc7 {[%emt 0:02:30]} 21. Ne1 {[%emt 0:11:30]} Rdc8 {[%emt 0:03:30]} 22. Nd3 {[%emt 0:01:30]} Kf8 {[%emt 0:03:30]} 23. Kf1 {[%emt 0:01:30]} Ke8 {[%emt 0:02:30]} 24. Ke1 {[%emt 0:03:30]} Na5 {[%emt 0:11:30]} 25. Rxc7 {[%emt 0:06:30]} Rxc7 {[%emt 0:00:30]} 26. Rc1 {[%emt 0:02:30]} Rxc1+ {[%emt 0:01:30]} 27. Nxc1 {[%emt 0:00:30]} Qxb5 {[%emt 0:00:30]} 28. axb5 {[%emt 0:00:30]} Nc4 {[%emt 0:00:30]} 29. Na2 {[%emt 0:00:00]} Kd7 {[%emt 0:01:30]} 30. Ke2 {[%emt 0:00:00]} Kc7 {[%emt 0:10:09]} 31. Kd3 {[%emt 0:03:30]} Nd6 {[%emt 0:00:10]} 32. Nc3 {[%emt 0:00:30]} Kb7 {[%emt 0:00:24]} 33. e4 {[%emt 0:01:30]} a6 {[%emt 0:03:26]} 34. bxa6+ {[%emt 0:00:30]} Kxa6 {[%emt 0:00:33]} 35. e5 {[%emt 0:00:30]} Ne8 {[%emt 0:02:42]} 36. d5 {[%emt 0:03:15]} exd5 {[%emt 0:00:30]} 37. Nxd5 {[%emt 0:00:07]} Kb5 {[%emt 0:01:49]} 38. Kd4 {[%emt 0:00:16]} Kc6 {[%emt 0:02:24]} 39. Nb4+ {[%emt 0:01:40]} Kb5 {[%emt 0:00:25]} 40. Nd5 {[%emt 0:00:13]} Kc6 {[%emt 0:30:07]} 41. Nb4+ {[%emt 0:32:18]} Kb5 {[%emt 0:01:17]} 42. Nd5 {[%emt 0:00:14]} 1/2-1/2